[Event "Titled Tuesday Blitz October 19 2021"]
[White "Weichhold, Pawel"]
[Black "Kamsky, Gata"]
[WhiteFideId "1139703"]
[BlackFideId "2000024"]
[WhiteElo "2309"]
[BlackElo "2603"]
[Result "0-1"]
[Round "03"]
[TimeControl "180+1"]
[Date "2021.10.19"]
[WhiteClock "0:00:23"]
[BlackClock "0:00:41"]

1. e4 {[%clk 0:02:57]}  d6 {[%clk 0:02:59]} 2. d4 {[%clk 0:02:56]}  g6 {[%clk 0:02:59]} 3. Nc3 {[%clk 0:02:57]}  Bg7 {[%clk 0:02:59]} 4. h4 {[%clk 0:02:57]}  h6 {[%clk 0:02:55]} 5. h5 {[%clk 0:02:57]}  g5 {[%clk 0:02:53]} 6. f4 {[%clk 0:02:57]}  gxf4 {[%clk 0:02:53]} 7. Bxf4 {[%clk 0:02:58]}  Nc6 {[%clk 0:02:53]} 8. d5 {[%clk 0:02:54]}  Ne5 {[%clk 0:02:51]} 9. Nf3 {[%clk 0:02:53]}  c6 {[%clk 0:02:44]} 10. dxc6 {[%clk 0:02:47]}  Nxc6 {[%clk 0:02:42]} 11. Qd2 {[%clk 0:02:40]}  Qa5 {[%clk 0:02:40]} 12. Bc4 {[%clk 0:02:36]}  Be6 {[%clk 0:02:35]} 13. Bd5 {[%clk 0:02:17]}  Nf6 {[%clk 0:02:30]} 14. O-O-O {[%clk 0:01:48]}  Nd7 {[%clk 0:02:15]} 15. Kb1 {[%clk 0:01:27]}  Bxc3 {[%clk 0:02:14]} 16. Qxc3 {[%clk 0:01:27]}  Qxc3 {[%clk 0:02:13]} 17. bxc3 {[%clk 0:01:28]}  Bxd5 {[%clk 0:02:09]} 18. exd5 {[%clk 0:01:25]}  Nce5 {[%clk 0:02:10]} 19. Nxe5 {[%clk 0:01:23]}  Nxe5 {[%clk 0:02:01]} 20. Rhe1 {[%clk 0:01:22]}  f6 {[%clk 0:02:01]} 21. Re3 {[%clk 0:00:51]}  Kd7 {[%clk 0:01:53]} 22. Bxe5 {[%clk 0:00:48]}  fxe5 {[%clk 0:01:49]} 23. Rg3 {[%clk 0:00:49]}  Rag8 {[%clk 0:01:48]} 24. Rdd3 {[%clk 0:00:49]}  b5 {[%clk 0:01:34]} 25. Rde3 {[%clk 0:00:49]}  Kc7 {[%clk 0:01:30]} 26. Kc1 {[%clk 0:00:45]}  Kb6 {[%clk 0:01:31]} 27. Rg6 {[%clk 0:00:44]}  Rxg6 {[%clk 0:01:28]} 28. hxg6 {[%clk 0:00:45]}  Rg8 {[%clk 0:01:29]} 29. Rg3 {[%clk 0:00:42]}  Rg7 {[%clk 0:01:27]} 30. Kb2 {[%clk 0:00:29]}  Kc5 {[%clk 0:01:26]} 31. Rf3 {[%clk 0:00:30]}  Rxg6 {[%clk 0:01:24]} 32. Rf7 {[%clk 0:00:31]}  Kxd5 {[%clk 0:01:16]} 33. Rxe7 {[%clk 0:00:32]}  a6 {[%clk 0:01:14]} 34. Ra7 {[%clk 0:00:31]}  Rxg2 {[%clk 0:01:12]} 35. Rxa6 {[%clk 0:00:32]}  e4 {[%clk 0:01:11]} 36. Ra8 {[%clk 0:00:32]}  Rg5 {[%clk 0:01:09]} 37. Rh8 {[%clk 0:00:30]}  h5 {[%clk 0:01:09]} 38. Kc1 {[%clk 0:00:31]}  e3 {[%clk 0:01:09]} 39. Kd1 {[%clk 0:00:31]}  Ke4 {[%clk 0:01:07]} 40. Re8+ {[%clk 0:00:31]}  Re5 {[%clk 0:01:06]} 41. Rf8 {[%clk 0:00:31]}  Rd5+ {[%clk 0:01:04]} 42. Ke1 {[%clk 0:00:29]}  Rd2 {[%clk 0:01:03]} 43. Re8+ {[%clk 0:00:29]}  Kf4 {[%clk 0:01:03]} 44. Rf8+ {[%clk 0:00:29]}  Kg4 {[%clk 0:01:02]} 45. Rg8+ {[%clk 0:00:29]}  Kh4 {[%clk 0:00:59]} 46. Re8 {[%clk 0:00:29]}  Rxc2 {[%clk 0:00:59]} 47. Rxe3 {[%clk 0:00:29]}  Rxa2 {[%clk 0:00:56]} 48. Rd3 {[%clk 0:00:30]}  Ra6 {[%clk 0:00:52]} 49. Kf2 {[%clk 0:00:27]}  Rc6 {[%clk 0:00:50]} 50. Rd4+ {[%clk 0:00:27]}  Kg5 {[%clk 0:00:50]} 51. Rd5+ {[%clk 0:00:25]}  Kg6 {[%clk 0:00:48]} 52. Rd3 {[%clk 0:00:25]}  Kf6 {[%clk 0:00:46]} 53. Rh3 {[%clk 0:00:19]}  Rc5 {[%clk 0:00:45]} 54. Ke2 {[%clk 0:00:19]}  Ke6 {[%clk 0:00:43]} 55. Kd3 {[%clk 0:00:19]}  Re5 {[%clk 0:00:43]} 56. Kd4 {[%clk 0:00:19]}  Rg5 {[%clk 0:00:42]} 57. Rh1 {[%clk 0:00:19]}  Rg4+ {[%clk 0:00:42]} 58. Kd3 {[%clk 0:00:19]}  h4 {[%clk 0:00:43]} 59. Rb1 {[%clk 0:00:18]}  Rg5 {[%clk 0:00:42]} 60. Kd4 {[%clk 0:00:18]}  Rh5 {[%clk 0:00:42]} 61. Rh1 {[%clk 0:00:19]}  h3 {[%clk 0:00:42]} 62. Rh2 {[%clk 0:00:19]}  Rh4+ {[%clk 0:00:42]} 63. Ke3 {[%clk 0:00:20]}  Kd5 {[%clk 0:00:42]} 64. Kf3 {[%clk 0:00:20]}  Kc4 {[%clk 0:00:43]} 65. Kg3 {[%clk 0:00:21]}  Rh6 {[%clk 0:00:43]} 66. Kg4 {[%clk 0:00:21]}  Kxc3 {[%clk 0:00:42]} 67. Kg5 {[%clk 0:00:22]}  Rh8 {[%clk 0:00:42]} 68. Kg6 {[%clk 0:00:23]}  b4 {[%clk 0:00:42]} 69. Kg7 {[%clk 0:00:23]}  Rh4 {[%clk 0:00:42]} 70. Kg6 {[%clk 0:00:24]}  b3 {[%clk 0:00:42]} 71. Kg5 {[%clk 0:00:25]}  b2 {[%clk 0:00:41]} 72. Kxh4 {[%clk 0:00:22]}  b1=Q {[%clk 0:00:41]} 73. Rxh3+ {[%clk 0:00:23]}  Kd4 {[%clk 0:00:41]} 0-1


[Site "https://www.chess.com"]

[Event "Titled Tuesday Blitz October 19 2021"]
[White "Yilmaz, Mustafa"]
[Black "Quispe Arteaga, Gabriel"]
[WhiteFideId "6302718"]
[BlackFideId "32059809"]
[WhiteElo "2518"]
[BlackElo "2229"]
[Result "1-0"]
[Round "03"]
[TimeControl "180+1"]
[Date "2021.10.19"]
[WhiteClock "0:00:18"]
[BlackClock "0:00:02"]

1. Nf3 {[%clk 0:03:00]}  c5 {[%clk 0:02:30]} 2. g3 {[%clk 0:02:58]}  b5 {[%clk 0:02:30]} 3. Bg2 {[%clk 0:02:57]}  Bb7 {[%clk 0:02:30]} 4. O-O {[%clk 0:02:57]}  Nf6 {[%clk 0:02:31]} 5. b3 {[%clk 0:02:48]}  e6 {[%clk 0:02:30]} 6. c4 {[%clk 0:02:48]}  bxc4 {[%clk 0:02:21]} 7. bxc4 {[%clk 0:02:48]}  Be7 {[%clk 0:02:21]} 8. Nc3 {[%clk 0:02:47]}  O-O {[%clk 0:02:21]} 9. Rb1 {[%clk 0:02:47]}  Bc6 {[%clk 0:02:19]} 10. Re1 {[%clk 0:02:37]}  Na6 {[%clk 0:02:15]} 11. e4 {[%clk 0:02:35]}  d6 {[%clk 0:02:15]} 12. d4 {[%clk 0:02:32]}  Rb8 {[%clk 0:01:35]} 13. Rxb8 {[%clk 0:02:25]}  Qxb8 {[%clk 0:01:34]} 14. d5 {[%clk 0:02:12]}  Bd7 {[%clk 0:01:34]} 15. e5 {[%clk 0:02:09]}  dxe5 {[%clk 0:01:34]} 16. Nxe5 {[%clk 0:02:09]}  Rd8 {[%clk 0:01:19]} 17. Bf4 {[%clk 0:01:52]}  Qb4 {[%clk 0:01:09]} 18. Qc2 {[%clk 0:01:49]}  Be8 {[%clk 0:01:00]} 19. Rb1 {[%clk 0:01:17]}  Qa5 {[%clk 0:00:48]} 20. dxe6 {[%clk 0:01:10]}  fxe6 {[%clk 0:00:49]} 21. Bh3 {[%clk 0:01:09]}  Nb4 {[%clk 0:00:48]} 22. Bxe6+ {[%clk 0:01:08]}  Kh8 {[%clk 0:00:48]} 23. Qe2 {[%clk 0:01:05]}  Qa3 {[%clk 0:00:25]} 24. Rb3 {[%clk 0:01:00]}  Qa6 {[%clk 0:00:25]} 25. Nf7+ {[%clk 0:00:54]}  Bxf7 {[%clk 0:00:26]} 26. Bxf7 {[%clk 0:00:55]}  Bd6 {[%clk 0:00:25]} 27. Bg5 {[%clk 0:00:47]}  Rf8 {[%clk 0:00:24]} 28. Qe6 {[%clk 0:00:40]}  Ng4 {[%clk 0:00:11]} 29. a3 {[%clk 0:00:34]}  Ne5 {[%clk 0:00:11]} 30. Bh5 {[%clk 0:00:28]}  Nc2 {[%clk 0:00:10]} 31. Nb5 {[%clk 0:00:25]}  Nd4 {[%clk 0:00:03]} 32. Nxd4 {[%clk 0:00:25]}  cxd4 {[%clk 0:00:04]} 33. Be7 {[%clk 0:00:23]}  Qa4 {[%clk 0:00:01]} 34. Bxf8 {[%clk 0:00:21]}  Qxb3 {[%clk 0:00:01]} 35. Bxd6 {[%clk 0:00:20]}  Qb1+ {[%clk 0:00:01]} 36. Kg2 {[%clk 0:00:20]}  Qe4+ {[%clk 0:00:02]} 37. Kh3 {[%clk 0:00:18]}  Qg4+ {[%clk 0:00:02]} 1-0


[Site "https://www.chess.com"]

[Event "Titled Tuesday Blitz October 19 2021"]
[White "Zierk, Steven"]
[Black "Piesik, Piotr"]
[WhiteFideId "2034255"]
[BlackFideId "1136194"]
[WhiteElo "2494"]
[BlackElo "2336"]
[Result "1-0"]
[Round "03"]
[TimeControl "180+1"]
[Date "2021.10.19"]
[WhiteClock "0:00:19"]
[BlackClock "0:00:11"]

1. e4 {[%clk 0:03:00]}  g6 {[%clk 0:02:59]} 2. d4 {[%clk 0:02:59]}  Bg7 {[%clk 0:02:58]} 3. Nc3 {[%clk 0:03:00]}  c6 {[%clk 0:02:57]} 4. Nf3 {[%clk 0:02:59]}  d6 {[%clk 0:02:57]} 5. h3 {[%clk 0:02:59]}  Nf6 {[%clk 0:02:57]} 6. Be2 {[%clk 0:02:58]}  O-O {[%clk 0:02:56]} 7. O-O {[%clk 0:02:58]}  b5 {[%clk 0:02:56]} 8. e5 {[%clk 0:02:53]}  Ne8 {[%clk 0:02:47]} 9. Bf4 {[%clk 0:02:48]}  Nd7 {[%clk 0:02:45]} 10. exd6 {[%clk 0:02:33]}  exd6 {[%clk 0:02:45]} 11. d5 {[%clk 0:02:28]}  b4 {[%clk 0:02:43]} 12. dxc6 {[%clk 0:02:28]}  bxc3 {[%clk 0:02:43]} 13. cxd7 {[%clk 0:02:28]}  Bxd7 {[%clk 0:02:43]} 14. bxc3 {[%clk 0:02:19]}  Bxc3 {[%clk 0:02:42]} 15. Rb1 {[%clk 0:02:19]}  Be6 {[%clk 0:02:40]} 16. a4 {[%clk 0:02:05]}  Rb8 {[%clk 0:02:35]} 17. Rxb8 {[%clk 0:02:03]}  Qxb8 {[%clk 0:02:36]} 18. Nd4 {[%clk 0:02:03]}  Bd7 {[%clk 0:02:32]} 19. Bb5 {[%clk 0:01:41]}  Bxb5 {[%clk 0:02:28]} 20. axb5 {[%clk 0:01:32]}  Qb6 {[%clk 0:02:18]} 21. Be3 {[%clk 0:01:28]}  Bxd4 {[%clk 0:02:10]} 22. Bxd4 {[%clk 0:01:27]}  Qxb5 {[%clk 0:02:11]} 23. Qf3 {[%clk 0:01:24]}  a5 {[%clk 0:02:02]} 24. Re1 {[%clk 0:01:16]}  Qf5 {[%clk 0:01:56]} 25. Qe3 {[%clk 0:01:01]}  Ng7 {[%clk 0:01:52]} 26. Bc3 {[%clk 0:00:47]}  Ne6 {[%clk 0:01:48]} 27. Qh6 {[%clk 0:00:40]}  f6 {[%clk 0:01:34]} 28. Qd2 {[%clk 0:00:30]}  Rc8 {[%clk 0:01:28]} 29. Qxd6 {[%clk 0:00:23]}  Rxc3 {[%clk 0:01:23]} 30. Rxe6 {[%clk 0:00:22]}  Rc8 {[%clk 0:01:15]} 31. Rxf6 {[%clk 0:00:20]}  Qxc2 {[%clk 0:01:13]} 32. Qe6+ {[%clk 0:00:20]}  Kh8 {[%clk 0:01:12]} 33. Rf7 {[%clk 0:00:21]}  Qc3 {[%clk 0:00:16]} 34. Qd7 {[%clk 0:00:20]}  Qe1+ {[%clk 0:00:12]} 35. Kh2 {[%clk 0:00:20]}  Qe5+ {[%clk 0:00:11]} 36. f4 {[%clk 0:00:19]} 1-0


[Site "https://www.chess.com"]

[Event "Titled Tuesday Blitz October 19 2021"]
[White "Abarca Gonzalez, Nicolas"]
[Black "Le, Tuan Minh"]
[WhiteFideId "3409422"]
[BlackFideId "12401153"]
[WhiteElo "2504"]
[BlackElo "2450"]
[Result "1/2-1/2"]
[Round "04"]
[TimeControl "180+1"]
[Date "2021.10.19"]
[WhiteClock "0:00:08"]
[BlackClock "0:00:06"]

1. e4 {[%clk 0:03:00]}  c5 {[%clk 0:02:57]} 2. Nf3 {[%clk 0:03:00]}  Nf6 {[%clk 0:02:56]} 3. e5 {[%clk 0:02:56]}  Nd5 {[%clk 0:02:56]} 4. b3 {[%clk 0:02:56]}  g6 {[%clk 0:02:55]} 5. h4 {[%clk 0:02:53]}  h6 {[%clk 0:02:52]} 6. h5 {[%clk 0:02:51]}  g5 {[%clk 0:02:51]} 7. d4 {[%clk 0:02:51]}  cxd4 {[%clk 0:02:31]} 8. Qxd4 {[%clk 0:02:52]}  e6 {[%clk 0:02:32]} 9. c4 {[%clk 0:02:52]}  Nc6 {[%clk 0:02:32]} 10. Qd1 {[%clk 0:02:46]}  Nc7 {[%clk 0:02:20]} 11. Nc3 {[%clk 0:02:44]}  d6 {[%clk 0:02:17]} 12. Ne4 {[%clk 0:02:42]}  dxe5 {[%clk 0:02:10]} 13. Qxd8+ {[%clk 0:02:42]}  Kxd8 {[%clk 0:02:04]} 14. Bb2 {[%clk 0:02:42]}  Bg7 {[%clk 0:00:55]} 15. O-O-O {[%clk 0:02:36]}  Nd4 {[%clk 0:00:55]} 16. Nxe5 {[%clk 0:02:31]}  Bxe5 {[%clk 0:00:55]} 17. Bxd4 {[%clk 0:02:32]}  Bxd4 {[%clk 0:00:56]} 18. Rxd4+ {[%clk 0:02:32]}  Ke7 {[%clk 0:00:57]} 19. Be2 {[%clk 0:02:23]}  e5 {[%clk 0:00:52]} 20. Rd2 {[%clk 0:02:21]}  Ne6 {[%clk 0:00:51]} 21. Nc3 {[%clk 0:02:21]}  Nd4 {[%clk 0:00:51]} 22. Re1 {[%clk 0:02:15]}  Be6 {[%clk 0:00:43]} 23. g3 {[%clk 0:02:14]}  Rhd8 {[%clk 0:00:41]} 24. f4 {[%clk 0:02:11]}  exf4 {[%clk 0:00:10]} 25. gxf4 {[%clk 0:02:12]}  gxf4 {[%clk 0:00:08]} 26. Bg4 {[%clk 0:02:09]}  Kf8 {[%clk 0:00:07]} 27. Bd1 {[%clk 0:02:05]}  Rac8 {[%clk 0:00:07]} 28. Rf2 {[%clk 0:02:04]}  b5 {[%clk 0:00:07]} 29. Rxf4 {[%clk 0:01:51]}  bxc4 {[%clk 0:00:08]} 30. b4 {[%clk 0:01:52]}  Ke7 {[%clk 0:00:03]} 31. Bg4 {[%clk 0:01:49]}  Nc6 {[%clk 0:00:04]} 32. Rxf7+ {[%clk 0:01:36]}  Kxf7 {[%clk 0:00:05]} 33. Bxe6+ {[%clk 0:01:36]}  Kf6 {[%clk 0:00:05]} 34. Bxc8 {[%clk 0:01:37]}  Rxc8 {[%clk 0:00:06]} 35. a3 {[%clk 0:01:32]}  Kg5 {[%clk 0:00:07]} 36. Re4 {[%clk 0:01:29]}  Kxh5 {[%clk 0:00:05]} 37. Rxc4 {[%clk 0:01:29]}  Ne7 {[%clk 0:00:06]} 38. Rxc8 {[%clk 0:01:28]}  Nxc8 {[%clk 0:00:07]} 39. Kd2 {[%clk 0:01:27]}  Kg4 {[%clk 0:00:07]} 40. Ke2 {[%clk 0:01:28]}  h5 {[%clk 0:00:08]} 41. Kf2 {[%clk 0:01:28]}  Nd6 {[%clk 0:00:05]} 42. a4 {[%clk 0:01:24]}  h4 {[%clk 0:00:05]} 43. b5 {[%clk 0:01:20]}  Kf4 {[%clk 0:00:06]} 44. a5 {[%clk 0:01:19]}  Ke5 {[%clk 0:00:02]} 45. Kg2 {[%clk 0:01:14]}  Kd4 {[%clk 0:00:02]} 46. b6 {[%clk 0:01:08]}  a6 {[%clk 0:00:03]} 47. Nb1 {[%clk 0:00:28]}  Kc4 {[%clk 0:00:03]} 48. Kh3 {[%clk 0:00:18]}  Kb4 {[%clk 0:00:04]} 49. Nd2 {[%clk 0:00:19]}  Nb7 {[%clk 0:00:03]} 50. Kxh4 {[%clk 0:00:15]}  Kxa5 {[%clk 0:00:03]} 51. Kg3 {[%clk 0:00:15]}  Kxb6 {[%clk 0:00:04]} 52. Kf2 {[%clk 0:00:16]}  Kc5 {[%clk 0:00:05]} 53. Ke2 {[%clk 0:00:16]}  Kd4 {[%clk 0:00:05]} 54. Kd1 {[%clk 0:00:16]}  Kc3 {[%clk 0:00:05]} 55. Kc1 {[%clk 0:00:16]}  Nc5 {[%clk 0:00:05]} 56. Nf3 {[%clk 0:00:11]}  a5 {[%clk 0:00:05]} 57. Kb1 {[%clk 0:00:11]}  a4 {[%clk 0:00:05]} 58. Ne1 {[%clk 0:00:11]}  Na6 {[%clk 0:00:03]} 59. Nc2 {[%clk 0:00:10]}  Nc5 {[%clk 0:00:03]} 60. Na3 {[%clk 0:00:07]}  Kb3 {[%clk 0:00:04]} 61. Nc2 {[%clk 0:00:07]}  Ne4 {[%clk 0:00:04]} 62. Ne1 {[%clk 0:00:06]}  Nd2+ {[%clk 0:00:04]} 63. Ka1 {[%clk 0:00:06]}  a3 {[%clk 0:00:03]} 64. Nd3 {[%clk 0:00:06]}  Nf3 {[%clk 0:00:04]} 65. Nc1+ {[%clk 0:00:07]}  Ka4 {[%clk 0:00:04]} 66. Ka2 {[%clk 0:00:07]}  Nd4 {[%clk 0:00:04]} 67. Nd3 {[%clk 0:00:06]}  Ne2 {[%clk 0:00:04]} 68. Nc5+ {[%clk 0:00:07]}  Kb4 {[%clk 0:00:05]} 69. Nd3+ {[%clk 0:00:07]}  Ka4 {[%clk 0:00:05]} 70. Nc5+ {[%clk 0:00:08]}  Kb4 {[%clk 0:00:06]} 71. Nd3+ {[%clk 0:00:08]}  Kc3 {[%clk 0:00:06]} 72. Kxa3 {[%clk 0:00:08]} 1/2-1/2


[Site "https://www.chess.com"]

[Event "Titled Tuesday Blitz October 19 2021"]
[White "Ajay, Karthikeyan"]
[Black "Demchenko, Anton"]
[WhiteFideId "35011685"]
[BlackFideId "4160258"]
[WhiteElo "2183"]
[BlackElo "2583"]
[Result "0-1"]
[Round "04"]
[TimeControl "180+1"]
[Date "2021.10.19"]
[WhiteClock "0:00:02"]
[BlackClock "0:00:39"]

1. d4 {[%clk 0:03:00]}  Nf6 {[%clk 0:02:59]} 2. Bf4 {[%clk 0:03:00]}  b6 {[%clk 0:02:55]} 3. e3 {[%clk 0:02:59]}  Bb7 {[%clk 0:02:54]} 4. h3 {[%clk 0:03:00]}  e6 {[%clk 0:02:54]} 5. Nf3 {[%clk 0:03:00]}  Bd6 {[%clk 0:02:54]} 6. Ne5 {[%clk 0:02:52]}  Nc6 {[%clk 0:02:49]} 7. c3 {[%clk 0:02:38]}  O-O {[%clk 0:02:41]} 8. Nd2 {[%clk 0:02:35]}  Nd5 {[%clk 0:02:41]} 9. Bh2 {[%clk 0:02:35]}  f6 {[%clk 0:02:38]} 10. Nxc6 {[%clk 0:02:32]}  dxc6 {[%clk 0:02:38]} 11. Bxd6 {[%clk 0:02:10]}  cxd6 {[%clk 0:02:38]} 12. e4 {[%clk 0:02:06]}  Ne7 {[%clk 0:02:35]} 13. Bd3 {[%clk 0:01:54]}  e5 {[%clk 0:02:19]} 14. O-O {[%clk 0:01:53]}  Ng6 {[%clk 0:02:18]} 15. g3 {[%clk 0:01:51]}  Bc8 {[%clk 0:02:15]} 16. Qh5 {[%clk 0:01:49]}  Qe8 {[%clk 0:02:07]} 17. Nc4 {[%clk 0:01:37]}  Qe6 {[%clk 0:02:01]} 18. Ne3 {[%clk 0:01:35]}  Qxh3 {[%clk 0:01:58]} 19. Qxh3 {[%clk 0:01:07]}  Bxh3 {[%clk 0:01:59]} 20. Rfe1 {[%clk 0:01:07]}  Rfe8 {[%clk 0:01:54]} 21. g4 {[%clk 0:00:57]}  h5 {[%clk 0:01:48]} 22. f3 {[%clk 0:00:36]}  hxg4 {[%clk 0:01:47]} 23. fxg4 {[%clk 0:00:34]}  Nf4 {[%clk 0:01:48]} 24. Bc4+ {[%clk 0:00:34]}  Kh7 {[%clk 0:01:47]} 25. Kh2 {[%clk 0:00:34]}  exd4 {[%clk 0:01:38]} 26. Kg3 {[%clk 0:00:33]}  Rxe4 {[%clk 0:01:31]} 27. Nf5 {[%clk 0:00:23]}  Rae8 {[%clk 0:00:55]} 28. Rxe4 {[%clk 0:00:23]}  Rxe4 {[%clk 0:00:56]} 29. Nxd6 {[%clk 0:00:24]}  Re3+ {[%clk 0:00:56]} 30. Kxf4 {[%clk 0:00:20]}  g5+ {[%clk 0:00:56]} 31. Kf5 {[%clk 0:00:21]}  Kg7 {[%clk 0:00:57]} 32. cxd4 {[%clk 0:00:15]}  c5 {[%clk 0:00:44]} 33. Rh1 {[%clk 0:00:08]}  cxd4 {[%clk 0:00:40]} 34. Ne8+ {[%clk 0:00:08]}  Rxe8 {[%clk 0:00:39]} 35. Rxh3 {[%clk 0:00:02]}  Re5# {[%clk 0:00:39]} 0-1


[Site "https://www.chess.com"]

[Event "Titled Tuesday Blitz October 19 2021"]
[White "Budrewicz, Krzysztof"]
[Black "Demidov, Mikhail"]
[WhiteFideId "1127950"]
[BlackFideId "4197143"]
[WhiteElo "2242"]
[BlackElo "2527"]
[Result "1-0"]
[Round "04"]
[TimeControl "180+1"]
[Date "2021.10.19"]
[WhiteClock "0:00:09"]
[BlackClock "0:00:03"]

1. d4 {[%clk 0:03:00]}  Nc6 {[%clk 0:02:57]} 2. Nf3 {[%clk 0:02:58]}  d6 {[%clk 0:02:55]} 3. h3 {[%clk 0:02:58]}  g6 {[%clk 0:02:54]} 4. c4 {[%clk 0:02:56]}  Bg7 {[%clk 0:02:53]} 5. Nc3 {[%clk 0:02:56]}  e5 {[%clk 0:02:51]} 6. d5 {[%clk 0:02:56]}  Nce7 {[%clk 0:02:49]} 7. e4 {[%clk 0:02:56]}  f5 {[%clk 0:02:42]} 8. Ng5 {[%clk 0:02:52]}  Nf6 {[%clk 0:02:40]} 9. Bd3 {[%clk 0:02:46]}  O-O {[%clk 0:02:36]} 10. O-O {[%clk 0:02:45]}  f4 {[%clk 0:02:33]} 11. Be2 {[%clk 0:02:41]}  h6 {[%clk 0:02:29]} 12. Ne6 {[%clk 0:02:41]}  Bxe6 {[%clk 0:02:28]} 13. dxe6 {[%clk 0:02:42]}  Nc6 {[%clk 0:02:28]} 14. Nd5 {[%clk 0:02:37]}  Re8 {[%clk 0:02:15]} 15. Nxf6+ {[%clk 0:02:15]}  Qxf6 {[%clk 0:02:14]} 16. b4 {[%clk 0:02:11]}  Qxe6 {[%clk 0:02:07]} 17. Qd5 {[%clk 0:01:51]}  Nxb4 {[%clk 0:01:51]} 18. Qxe6+ {[%clk 0:01:49]}  Rxe6 {[%clk 0:01:50]} 19. Rb1 {[%clk 0:01:48]}  c5 {[%clk 0:01:30]} 20. a3 {[%clk 0:01:47]}  Nc6 {[%clk 0:01:29]} 21. Rxb7 {[%clk 0:01:47]}  h5 {[%clk 0:01:27]} 22. Bd2 {[%clk 0:01:42]}  Bf6 {[%clk 0:01:18]} 23. Rfb1 {[%clk 0:01:40]}  Bd8 {[%clk 0:01:18]} 24. Bd1 {[%clk 0:01:35]}  Re7 {[%clk 0:01:12]} 25. Ba4 {[%clk 0:01:32]}  Nd4 {[%clk 0:01:00]} 26. Rb8 {[%clk 0:01:24]}  Rxb8 {[%clk 0:00:56]} 27. Rxb8 {[%clk 0:01:24]}  Ne6 {[%clk 0:00:53]} 28. Ba5 {[%clk 0:01:23]}  Rf7 {[%clk 0:00:49]} 29. Rxd8+ {[%clk 0:01:00]}  Nxd8 {[%clk 0:00:48]} 30. Bxd8 {[%clk 0:01:00]}  Rb7 {[%clk 0:00:41]} 31. Bb5 {[%clk 0:00:59]}  Kf7 {[%clk 0:00:38]} 32. h4 {[%clk 0:00:55]}  a6 {[%clk 0:00:35]} 33. Bxa6 {[%clk 0:00:54]}  Ra7 {[%clk 0:00:35]} 34. Bb5 {[%clk 0:00:54]}  Rxa3 {[%clk 0:00:35]} 35. Bc6 {[%clk 0:00:53]}  Ra1+ {[%clk 0:00:29]} 36. Kh2 {[%clk 0:00:52]}  Ra2 {[%clk 0:00:29]} 37. f3 {[%clk 0:00:51]}  Rc2 {[%clk 0:00:28]} 38. Bg5 {[%clk 0:00:48]}  Kf8 {[%clk 0:00:27]} 39. Bd5 {[%clk 0:00:45]}  Rb2 {[%clk 0:00:26]} 40. Kh3 {[%clk 0:00:46]}  Ra2 {[%clk 0:00:26]} 41. Bd8 {[%clk 0:00:39]}  Ra1 {[%clk 0:00:25]} 42. g3 {[%clk 0:00:36]}  Ra3 {[%clk 0:00:22]} 43. gxf4 {[%clk 0:00:33]}  exf4 {[%clk 0:00:12]} 44. Kg2 {[%clk 0:00:32]}  Ra2+ {[%clk 0:00:11]} 45. Kf1 {[%clk 0:00:32]}  Ra1+ {[%clk 0:00:12]} 46. Ke2 {[%clk 0:00:33]}  Ra2+ {[%clk 0:00:12]} 47. Kd1 {[%clk 0:00:33]}  Rf2 {[%clk 0:00:12]} 48. Bg5 {[%clk 0:00:29]}  Rxf3 {[%clk 0:00:12]} 49. e5 {[%clk 0:00:29]}  Rd3+ {[%clk 0:00:10]} 50. Ke2 {[%clk 0:00:29]}  Rxd5 {[%clk 0:00:06]} 51. cxd5 {[%clk 0:00:29]}  dxe5 {[%clk 0:00:07]} 52. Kd3 {[%clk 0:00:17]}  Ke8 {[%clk 0:00:04]} 53. Ke4 {[%clk 0:00:16]}  c4 {[%clk 0:00:04]} 54. Kxe5 {[%clk 0:00:16]}  f3 {[%clk 0:00:04]} 55. Ke6 {[%clk 0:00:11]}  f2 {[%clk 0:00:03]} 56. d6 {[%clk 0:00:11]}  f1=Q {[%clk 0:00:04]} 57. d7+ {[%clk 0:00:12]}  Kf8 {[%clk 0:00:05]} 58. d8=Q+ {[%clk 0:00:12]}  Kg7 {[%clk 0:00:05]} 59. Qe7+ {[%clk 0:00:10]}  Kg8 {[%clk 0:00:06]} 60. Qd8+ {[%clk 0:00:08]}  Kg7 {[%clk 0:00:05]} 61. Bf6+ {[%clk 0:00:09]}  Kh7 {[%clk 0:00:03]} 62. Qh8# {[%clk 0:00:09]} 1-0


[Site "https://www.chess.com"]

[Event "Titled Tuesday Blitz October 19 2021"]
[White "Kezin, Roman"]
[Black "Tang, Andrew"]
[WhiteFideId "24124621"]
[BlackFideId "2059630"]
[WhiteElo "2557"]
[BlackElo "2588"]
[Result "0-1"]
[Round "04"]
[TimeControl "180+1"]
[Date "2021.10.19"]
[WhiteClock "0:00:02"]
[BlackClock "0:00:03"]

1. d4 {[%clk 0:03:00]}  d5 {[%clk 0:02:55]} 2. c4 {[%clk 0:03:01]}  e6 {[%clk 0:02:54]} 3. Nf3 {[%clk 0:03:01]}  Nf6 {[%clk 0:02:51]} 4. g3 {[%clk 0:03:01]}  dxc4 {[%clk 0:02:51]} 5. Bg2 {[%clk 0:03:02]}  Nc6 {[%clk 0:02:52]} 6. O-O {[%clk 0:03:02]}  Rb8 {[%clk 0:02:51]} 7. Nc3 {[%clk 0:03:01]}  Be7 {[%clk 0:02:50]} 8. Qa4 {[%clk 0:03:00]}  O-O {[%clk 0:02:08]} 9. Qxc4 {[%clk 0:02:59]}  a6 {[%clk 0:02:08]} 10. Bf4 {[%clk 0:02:11]}  Nh5 {[%clk 0:01:39]} 11. Be3 {[%clk 0:01:58]}  b5 {[%clk 0:01:37]} 12. Qd3 {[%clk 0:01:56]}  Bb7 {[%clk 0:01:29]} 13. Rac1 {[%clk 0:01:54]}  Rc8 {[%clk 0:01:27]} 14. Rfd1 {[%clk 0:01:53]}  Nf6 {[%clk 0:01:26]} 15. Qb1 {[%clk 0:01:50]}  Na5 {[%clk 0:01:23]} 16. Bf4 {[%clk 0:01:45]}  Qe8 {[%clk 0:01:02]} 17. b4 {[%clk 0:01:24]}  Nc4 {[%clk 0:00:57]} 18. Ne5 {[%clk 0:01:18]}  Bxg2 {[%clk 0:00:52]} 19. Kxg2 {[%clk 0:01:19]}  Nxe5 {[%clk 0:00:45]} 20. Bxe5 {[%clk 0:01:20]}  Qd7 {[%clk 0:00:39]} 21. Bxf6 {[%clk 0:01:19]}  gxf6 {[%clk 0:00:29]} 22. d5 {[%clk 0:01:19]}  e5 {[%clk 0:00:23]} 23. e4 {[%clk 0:01:18]}  Rfd8 {[%clk 0:00:23]} 24. Rd3 {[%clk 0:01:16]}  c5 {[%clk 0:00:19]} 25. d6 {[%clk 0:01:12]}  Bxd6 {[%clk 0:00:19]} 26. Nd5 {[%clk 0:01:12]}  Qe6 {[%clk 0:00:14]} 27. Nb6 {[%clk 0:01:08]}  Rb8 {[%clk 0:00:09]} 28. bxc5 {[%clk 0:01:05]}  Bxc5 {[%clk 0:00:09]} 29. Nd5 {[%clk 0:01:05]}  Bf8 {[%clk 0:00:08]} 30. Rdc3 {[%clk 0:01:00]}  f5 {[%clk 0:00:06]} 31. Rc6 {[%clk 0:00:59]}  Rd6 {[%clk 0:00:06]} 32. Nc7 {[%clk 0:00:53]}  Qh6 {[%clk 0:00:03]} 33. Rxd6 {[%clk 0:00:29]}  Qxd6 {[%clk 0:00:04]} 34. exf5 {[%clk 0:00:30]}  Rc8 {[%clk 0:00:02]} 35. Qc2 {[%clk 0:00:30]}  Qb6 {[%clk 0:00:01]} 36. f6 {[%clk 0:00:25]}  Bd6 {[%clk 0:00:01]} 37. Qf5 {[%clk 0:00:22]}  Qb7+ {[%clk 0:00:02]} 38. Kh3 {[%clk 0:00:18]}  Kh8 {[%clk 0:00:02]} 39. Qg4 {[%clk 0:00:13]}  Rg8 {[%clk 0:00:02]} 40. Qd7 {[%clk 0:00:13]}  Bxc7 {[%clk 0:00:02]} 41. Rxc7 {[%clk 0:00:14]}  Qf3 {[%clk 0:00:02]} 42. Qxf7 {[%clk 0:00:12]}  Qf5+ {[%clk 0:00:03]} 43. Kg2 {[%clk 0:00:11]}  Qe4+ {[%clk 0:00:03]} 44. f3 {[%clk 0:00:11]}  Qe2+ {[%clk 0:00:02]} 45. Kh3 {[%clk 0:00:11]}  Qf1+ {[%clk 0:00:02]} 46. Kh4 {[%clk 0:00:11]}  Qd3 {[%clk 0:00:02]} 47. Rc8 {[%clk 0:00:07]}  Qd4+ {[%clk 0:00:01]} 48. g4 {[%clk 0:00:08]}  Qf2+ {[%clk 0:00:01]} 49. Kh3 {[%clk 0:00:01]}  Qxf3+ {[%clk 0:00:02]} 50. Kh4 {[%clk 0:00:02]}  Qxg4# {[%clk 0:00:03]} 0-1


[Site "https://www.chess.com"]